Workbook

Sheet dataset
B2: Records of a Competition
B4: Participant Name | C4: Distance (m) | D4: Time (sec)
B5: Michael | C5: 1459.5678 | D5: 1260.98769
B6: Joe | C6: 789.18 | D6: 967.1867
B7: John | C7: 858.27 | D7: 567.2876
B8: Richard | C8: 687.78 | D8: 234.6785
B9: Christian | C9: 478.967 | D9: 345.10876
B10: Jefferson | C10: 897.654 | D10: 823.1087

Sheet dataset1
B2: "X" Laboratory
B4: Substance | C4: Temperature (deg C)
B5: Ammonia | C5: -132.445
B6: Butane | C6: -152.236
B7: Chlorine | C7: -144.7643
B8: Ethane | C8: -32.2234
B9: Ethanol | C9: -242.0965
B10: Nitrogen | C10: -147.987
B11: Propane | C11: -96.70976

Sheet quick view
A1: ROUNDUP Function
A2: =ROUNDUP(number, num_digits)
A4: number | B4: num_digits | C4: Formula | D4: Output
A5: 967.1867 | B5: -3 | C5: =_xlfn.FORMULATEXT(D5) -> =ROUNDUP(A5,B5) | D5: =ROUNDUP(A5,B5) -> 1000
A6: 967.1867 | B6: -2 | C6: =_xlfn.FORMULATEXT(D6) -> =ROUNDUP(A6,B6) | D6: =ROUNDUP(A6,B6) -> 1000
A7: 967.1867 | B7: -1 | C7: =ROUNDUP(A7,B7) | D7: 970
A8: 967.1867 | B8: 0 | C8: =ROUNDUP(A8,B8) | D8: 968
A9: 967.1867 | B9: 1 | C9: =ROUNDUP(A9,B9) | D9: 967.2
A10: 967.1867 | B10: 2 | C10: =ROUNDUP(A10,B10) | D10: 967.19
A11: 967.1867 | B11: 3 | C11: =ROUNDUP(A11,B11) | D11: 967.187
A12: -967.1867 | B12: 1 | C12: =ROUNDUP(A12,B12) | D12: -967.2
A13: ROUNDUP Function rounds a number up to a certain number of decimal points

Sheet whole number
B2: Rounding Up to the Whole Number
B4: Participant Name | C4: Time (sec) | D4: Rounded Time
B5: Michael | C5: 1260.98769 | D5: =ROUNDUP(C5,0) -> 1261
B6: Joe | C6: 967.1867 | D6: =ROUNDUP(C6,0) -> 968
B7: John | C7: 567.2876 | D7: =ROUNDUP(C7,0) -> 568
B8: Richard | C8: 234.6785 | D8: 235
B9: Christian | C9: 345.10876 | D9: 346
B10: Jefferson | C10: 823.1087 | D10: 824

Sheet positive
B2: Using Positive Number Digit
B4: Participant Name | C4: Time (sec) | D4: Rounded Time
B5: Michael | C5: 1260.98769 | D5: =ROUNDUP(C5,1) -> 1261
B6: Joe | C6: 967.1867 | D6: =ROUNDUP(C6,1) -> 967.2
B7: John | C7: 567.2876 | D7: 567.3
B8: Richard | C8: 234.6785 | D8: 234.7
B9: Christian | C9: 345.10876 | D9: 345.2
B10: Jefferson | C10: 823.1087 | D10: 823.2

Sheet positive2
B2: Using Positive Number Digit
B4: Participant Name | C4: Time (sec) | D4: Rounded Time
B5: Michael | C5: 1260.98769 | D5: =ROUNDUP(C5,2) -> 1260.99
B6: Joe | C6: 967.1867 | D6: =ROUNDUP(C6,2) -> 967.19
B7: John | C7: 567.2876 | D7: 567.29
B8: Richard | C8: 234.6785 | D8: 234.68
B9: Christian | C9: 345.10876 | D9: 345.11
B10: Jefferson | C10: 823.1087 | D10: 823.11

Sheet positive3
B2: Using Positive Number Digit
B4: Participant Name | C4: Time (sec) | D4: Rounded Time
B5: Michael | C5: 1260.98769 | D5: =ROUNDUP(C5,3) -> 1260.988
B6: Joe | C6: 967.1867 | D6: =ROUNDUP(C6,3) -> 967.187
B7: John | C7: 567.2876 | D7: 567.288
B8: Richard | C8: 234.6785 | D8: 234.679
B9: Christian | C9: 345.10876 | D9: 345.109
B10: Jefferson | C10: 823.1087 | D10: 823.109

Sheet negative1
B2: Using Negative Number Digit
B4: Participant Name | C4: Distance (m) | D4: Rounded Distance
B5: Michael | C5: 1459.5678 | D5: =ROUNDUP(C5,-1) -> 1460
B6: Joe | C6: 789.18 | D6: =ROUNDUP(C6,-1) -> 790
B7: John | C7: 858.27 | D7: 860
B8: Richard | C8: 687.78 | D8: 690
B9: Christian | C9: 478.967 | D9: 480
B10: Jefferson | C10: 897.654 | D10: 900

Sheet negative2
B2: Using Negative Number Digit
B4: Participant Name | C4: Distance (m) | D4: Rounded Distance
B5: Michael | C5: 1459.5678 | D5: =ROUNDUP(C5,-2) -> 1500
B6: Joe | C6: 789.18 | D6: =ROUNDUP(C6,-2) -> 800
B7: John | C7: 858.27 | D7: 900
B8: Richard | C8: 687.78 | D8: 700
B9: Christian | C9: 478.967 | D9: 500
B10: Jefferson | C10: 897.654 | D10: 900

Sheet negative3
B2: Using Negative Number Digit
B4: Participant Name | C4: Distance (m) | D4: Rounded Distance
B5: Michael | C5: 1459.5678 | D5: =ROUNDUP(C5,-3) -> 2000
B6: Joe | C6: 789.18 | D6: =ROUNDUP(C6,-3) -> 1000
B7: John | C7: 858.27 | D7: 1000
B8: Richard | C8: 687.78 | D8: 1000
B9: Christian | C9: 478.967 | D9: 1000
B10: Jefferson | C10: 897.654 | D10: 1000

Sheet Formula
B2: ROUNDUP in a Formula
B4: Participant Name | C4: Distance (m) | D4: Time (sec) | E4: Speed (m/sec)
B5: Michael | C5: 1459.5678 | D5: 1260.98769 | E5: =ROUNDUP((C5/D5),2) -> 1.16
B6: Joe | C6: 789.18 | D6: 967.1867 | E6: =ROUNDUP((C6/D6),2) -> 0.82
B7: John | C7: 858.27 | D7: 567.2876 | E7: 1.52
B8: Richard | C8: 687.78 | D8: 234.6785 | E8: 2.94
B9: Christian | C9: 478.967 | D9: 345.10876 | E9: 1.39
B10: Jefferson | C10: 897.654 | D10: 823.1087 | E10: 1.1

Sheet VBA
B2: Using VBA Code
B4: Participant Name | C4: Distance (m) | D4: Rounded Distance
B5: Michael | C5: 1459.5678 | D5: 1459.57
B6: Joe | C6: 789.18 | D6: 789.18
B7: John | C7: 858.27 | D7: 858.27
B8: Richard | C8: 687.78 | D8: 687.78
B9: Christian | C9: 478.967 | D9: 478.97
B10: Jefferson | C10: 897.654 | D10: 897.66

Sheet negative values
B2: Negative Values
B4: Substance | C4: Temperature (deg C) | D4: Rounded Values
B5: Ammonia | C5: -132.445 | D5: =ROUNDUP(C5,0) -> -133
B6: Butane | C6: -152.236 | D6: =ROUNDUP(C6,0) -> -153
B7: Chlorine | C7: -144.7643 | D7: -145
B8: Ethane | C8: -32.2234 | D8: -33
B9: Ethanol | C9: -242.0965 | D9: -243
B10: Nitrogen | C10: -147.987 | D10: -148
B11: Propane | C11: -96.70976 | D11: -97

Sheet negative values2
B2: Negative Values
B4: Substance | C4: Temperature (deg C) | D4: Rounded Values
B5: Ammonia | C5: -132.445 | D5: =ROUNDUP(C5,2) -> -132.45
B6: Butane | C6: -152.236 | D6: =ROUNDUP(C6,2) -> -152.24
B7: Chlorine | C7: -144.7643 | D7: -144.77
B8: Ethane | C8: -32.2234 | D8: -32.23
B9: Ethanol | C9: -242.0965 | D9: -242.1
B10: Nitrogen | C10: -147.987 | D10: -147.99
B11: Propane | C11: -96.70976 | D11: -96.71

Sheet negative values3
B2: Negative Values
B4: Substance | C4: Temperature (deg C) | D4: Rounded Values
B5: Ammonia | C5: -132.445 | D5: =ROUNDUP(C5,-2) -> -200
B6: Butane | C6: -152.236 | D6: =ROUNDUP(C6,-2) -> -200
B7: Chlorine | C7: -144.7643 | D7: -200
B8: Ethane | C8: -32.2234 | D8: -100
B9: Ethanol | C9: -242.0965 | D9: -300
B10: Nitrogen | C10: -147.987 | D10: -200
B11: Propane | C11: -96.70976 | D11: -100

Sheet Practice
B2: Practice | G2: Practice
B4: Participant Name | C4: Distance (m) | D4: Time (sec) | G4: Substance | H4: Temperature (deg C) | I4: Rounded Values
B5: Michael | C5: 1459.5678 | D5: 1260.98769 | G5: Ammonia | H5: -132.445
B6: Joe | C6: 789.18 | D6: 967.1867 | G6: Butane | H6: -152.236
B7: John | C7: 858.27 | D7: 567.2876 | G7: Chlorine | H7: -144.7643
B8: Richard | C8: 687.78 | D8: 234.6785 | G8: Ethane | H8: -32.2234
B9: Christian | C9: 478.967 | D9: 345.10876 | G9: Ethanol | H9: -242.0965
B10: Jefferson | C10: 897.654 | D10: 823.1087 | G10: Nitrogen | H10: -147.987
G11: Propane | H11: -96.70976
